bitfinex/quotes_BTCUSD_20250212
["timestamp","ask_amount","ask_price","bid_price","bid_amount"]
[1739351027531,0.155501,96462.0,96461.0,0.11508923]
[1739351027743,0.155501,96462.0,96461.0,0.12508923]
[1739351028411,0.155501,96462.0,96461.0,0.12008923]
[1739351028751,0.155501,96462.0,96461.0,0.12508923]
[1739351029158,0.207329,96465.0,96461.0,0.12508923]
[1739351029439,0.155499,96464.0,96461.0,0.16623106]
[1739351029772,0.1555,96463.0,96461.0,0.16623106]
[1739351029980,0.1555,96463.0,96461.0,0.15123106]
[1739351030244,0.1555,96463.0,96461.0,0.11008923]
[1739351030356,0.1555,96463.0,96461.0,0.12208923]
[1739351031269,0.1555,96463.0,96461.0,0.11408923]
[1739351031493,0.1555,96463.0,96461.0,0.12408923]
[1739351031687,0.1555,96463.0,96461.0,0.12008923]
[1739351031964,0.1555,96463.0,96461.0,0.12508923]
[1739351032109,0.1555,96463.0,96461.0,0.12008923]
[1739351032509,0.1555,96463.0,96461.0,0.12308923]
[1739351032714,0.1555,96463.0,96461.0,0.12008923]
[1739351032909,0.1555,96463.0,96461.0,0.11008923]
[1739351033473,0.1555,96463.0,96461.0,0.11708923]
[1739351033681,0.1555,96463.0,96461.0,0.12208923]
[1739351033825,0.1555,96463.0,96461.0,0.11508923]
[1739351034027,0.1555,96463.0,96461.0,0.12508923]
[1739351034681,0.1555,96463.0,96461.0,0.11508923]
[1739351034887,0.1555,96463.0,96461.0,0.11708923]
[1739351035399,0.1555,96463.0,96461.0,0.12208923]
[1739351035971,0.1555,96463.0,96461.0,0.11708923]
[1739351036172,0.1555,96463.0,96461.0,0.11008923]
[1739351036368,0.1555,96463.0,96461.0,0.11308923]
[1739351036618,0.1555,96463.0,96461.0,0.12308923]
[1739351037040,0.1555,96463.0,96461.0,0.11308923]
[1739351037196,0.1555,96463.0,96461.0,0.12008923]
[1739351037958,0.1555,96463.0,96461.0,0.11308923]
[1739351038088,0.1555,96463.0,96461.0,0.12008923]
[1739351038293,0.1555,96463.0,96461.0,0.12508923]
[1739351039008,0.1555,96463.0,96461.0,0.12808923]
[1739351039256,0.1555,96463.0,96461.0,0.12008923]
[1739351039406,0.1555,96463.0,96461.0,0.11008923]
[1739351039753,0.1555,96463.0,96461.0,0.12208923]
[1739351040112,0.1555,96463.0,96461.0,0.11508923]
[1739351040525,0.1555,96463.0,96461.0,0.12508923]
[1739351040942,0.1555,96463.0,96461.0,0.12531309]
[1739351041158,0.1555,96463.0,96461.0,0.12031309]
[1739351041572,0.1555,96463.0,96461.0,0.11031309]
[1739351041750,0.1555,96463.0,96461.0,0.11331309]
[1739351042331,0.1555,96463.0,96461.0,0.11031309]
[1739351042707,0.1555,96463.0,96461.0,0.11531309]
[1739351042918,0.1555,96463.0,96462.0,0.0767]
[1739351043119,0.21888874,96466.0,96462.0,0.21213272]
[1739351043120,0.0001066,96466.0,96462.0,0.21213272]
[1739351043326,0.0001066,96466.0,96465.0,0.17920365]
[1739351043529,0.0001066,96466.0,96465.0,0.22954004]
[1739351043728,0.0001066,96466.0,96465.0,0.32065658]
[1739351043958,0.0001066,96466.0,96465.0,0.34006561]
[1739351044560,0.0001066,96466.0,96465.0,0.35306561]
[1739351044680,0.0001066,96466.0,96465.0,0.37391015]
[1739351045099,0.0001066,96466.0,96465.0,0.37991015]
[1739351045319,0.0001066,96466.0,96465.0,0.38766897]
[1739351045909,0.0001066,96466.0,96465.0,0.30383154]
[1739351046114,0.0001066,96466.0,96465.0,0.282987]
[1739351047327,0.0001066,96466.0,96465.0,0.26357797]
[1739351047876,0.0001066,96466.0,96465.0,0.78189797]
[1739351051902,0.0001066,96466.0,96465.0,0.77413915]
[1739351054779,0.0001066,96466.0,96465.0,0.8766428]
[1739351055019,0.0001066,96466.0,96465.0,0.88439364]
[1739351055264,0.0001066,96466.0,96465.0,0.78188999]
[1739351055681,0.0001066,96466.0,96465.0,0.76888999]
[1739351055945,0.0001066,96466.0,96465.0,0.76288999]
[1739351056115,0.0001066,96466.0,96465.0,0.77788999]
[1739351056323,0.0001066,96466.0,96465.0,0.78488999]
[1739351056529,0.0001066,96466.0,96465.0,0.94038599]
[1739351057149,0.01413127,96478.0,96465.0,0.88739364]
[1739351057323,0.155473,96480.0,96473.0,0.0776]
[1739351057527,0.155474,96479.0,96474.0,0.10250365]
[1739351057710,0.155471,96481.0,96474.0,0.72202885]
[1739351058182,0.207275,96490.0,96474.0,0.72202885]
[1739351058388,0.155468,96483.0,96475.0,0.1565164]
[1739351058559,0.207275,96490.0,96476.0,0.10250365]
[1739351058767,0.155466,96484.0,96477.0,0.0010364]
[1739351059073,0.01408846,96490.0,96478.0,0.10250365]
[1739351059209,0.01408846,96490.0,96479.0,0.0010364]
[1739351059418,0.207279,96488.0,96481.0,0.0779]
[1739351059706,0.155461,96487.0,96482.0,0.10250365]
[1739351059885,0.01426261,96491.0,96482.0,0.11080374]
[1739351060101,0.22153661,96491.0,96482.0,0.11080374]
[1739351060316,0.155465,96485.0,96482.0,0.11080374]
[1739351060541,0.207281,96488.0,96482.0,0.11080374]
[1739351060691,0.155467,96483.0,96482.0,0.11080374]
[1739351060853,0.155467,96483.0,96482.0,0.10250365]
[1739351061056,0.155467,96483.0,96482.0,0.11080374]
[1739351061583,0.155467,96483.0,96482.0,0.11180374]
[1739351061966,0.155467,96483.0,96482.0,0.11080374]
[1739351062165,0.155467,96483.0,96482.0,0.11180374]
[1739351062572,0.155467,96483.0,96482.0,0.11980374]
[1739351063925,0.155467,96483.0,96482.0,0.12380374]
[1739351064122,0.155459,96488.0,96482.0,0.12380374]
[1739351064376,0.155461,96487.0,96482.0,0.12380374]
[1739351064577,0.155463,96486.0,96482.0,0.12380374]
[1739351064813,0.01426261,96491.0,96482.0,0.12380374]
[1739351065026,0.155466,96484.0,96482.0,0.12380374]
[1739351065197,0.155466,96484.0,96482.0,0.11980374]
[1739351065403,0.207275,96490.0,96482.0,0.11980374]
[1739351065404,0.207275,96490.0,96482.0,0.11380374]
[1739351065603,0.155466,96485.0,96482.0,0.11380374]
[1739351065764,0.155466,96485.0,96482.0,0.11080374]
[1739351065998,0.155466,96484.0,96482.0,0.11580374]
[1739351066369,0.155466,96484.0,96482.0,0.11080374]
[1739351066863,0.155466,96484.0,96482.0,0.11780374]
[1739351067069,0.155466,96484.0,96482.0,0.11980374]
[1739351067467,0.155466,96484.0,96482.0,0.11780374]
[1739351067675,0.155466,96484.0,96482.0,0.12180374]
[1739351068079,0.0001065,96486.0,96482.0,0.11480374]
[1739351068305,0.0001065,96486.0,96482.0,0.12280374]
[1739351068880,0.1555695,96486.0,96482.0,0.12280374]
[1739351069084,0.1555695,96486.0,96482.0,0.11080374]
[1739351069286,0.1555695,96486.0,96482.0,0.11780374]
[1739351070548,0.1555695,96486.0,96482.0,0.12080374]
[1739351072304,0.0001065,96486.0,96482.0,0.12080374]
[1739351073058,0.0001065,96486.0,96483.0,0.00103634]
[1739351073441,0.0001065,96486.0,96485.0,0.33586765]
[1739351073778,0.0001065,96486.0,96485.0,0.90966797]
[1739351074614,0.0001065,96486.0,96485.0,0.91366797]
[1739351074953,0.0001065,96486.0,96485.0,0.93060865]
[1739351075070,0.0001065,96486.0,96485.0,0.93760865]
[1739351075275,0.0001065,96486.0,96485.0,1.06025493]
[1739351075728,0.0001065,96486.0,96485.0,1.07525493]
[1739351077823,0.0001065,96486.0,96485.0,0.95075128]
[1739351078269,0.0001065,96486.0,96485.0,0.97275128]
[1739351078676,0.0001065,96486.0,96485.0,0.95775128]
[1739351078889,0.0001065,96486.0,96485.0,0.94535581]
[1739351079089,0.0001065,96486.0,96485.0,0.96035581]
[1739351079338,0.0001065,96486.0,96485.0,1.28485581]
[1739351082400,0.0001065,96486.0,96485.0,1.38735946]
[1739351083223,0.0001065,96486.0,96485.0,1.28485581]
[1739351085463,0.0001065,96486.0,96485.0,1.26985581]
[1739351085700,0.0001065,96486.0,96485.0,1.28485581]
[1739351086367,0.0001065,96486.0,96485.0,1.27785581]
[1739351086642,0.0001065,96486.0,96485.0,1.28485581]
[1739351088607,0.0001065,96486.0,96485.0,1.26985581]
[1739351088959,0.0001065,96486.0,96485.0,1.28485581]
[1739351089336,0.0001065,96486.0,96485.0,1.27710865]
[1739351089901,0.0001065,96486.0,96485.0,1.27010865]
[1739351090369,0.0001065,96486.0,96485.0,1.27710865]
[1739351090560,0.0001065,96486.0,96485.0,1.2773323]
[1739351093403,0.0001065,96486.0,96485.0,1.2773323]
[1739351093608,0.0001065,96486.0,96485.0,1.37983595]
[1739351094087,0.0001065,96486.0,96485.0,1.36483595]
[1739351094852,0.0001065,96486.0,96485.0,1.37983595]
[1739351095030,0.0001065,96486.0,96485.0,1.38756701]
[1739351095396,0.0001065,96486.0,96485.0,1.36556701]
[1739351095702,0.0001065,96486.0,96485.0,1.38756701]
[1739351096531,0.0001065,96486.0,96485.0,1.54756701]
[1739351096701,0.0001065,96486.0,96485.0,1.55756701]
[1739351097264,0.0001065,96486.0,96485.0,1.45506336]
[1739351098307,0.0001065,96486.0,96485.0,1.46743608]
[1739351100376,5e-07,96486.0,96485.0,2.03323608]
[1739351100989,0.0001066,96491.0,96490.0,0.043]
[1739351100990,1e-07,96491.0,96490.0,0.043]
[1739351101248,1e-07,96491.0,96490.0,0.57479554]
[1739351101452,1e-07,96491.0,96490.0,1.20266721]
[1739351102281,0.0001066,96499.0,96498.0,0.321243]
[1739351102282,6e-07,96499.0,96498.0,0.321243]
[1739351102486,6e-07,96499.0,96498.0,1.09945665]
[1739351102690,0.0829441,96536.0,96515.0,0.448216]
[1739351102893,0.08298814,96516.0,96515.0,0.87521965]
[1739351103094,4.404e-05,96516.0,96515.0,1.4957733]
[1739351103304,4.404e-05,96516.0,96515.0,1.50396859]
[1739351105062,4.404e-05,96516.0,96515.0,1.52407237]
[1739351105261,4.404e-05,96516.0,96515.0,1.53107237]
[1739351105467,4.404e-05,96516.0,96515.0,1.54607237]
[1739351105670,4.404e-05,96516.0,96515.0,2.08887237]
[1739351106073,4.404e-05,96516.0,96515.0,2.10815026]
[1739351106392,4.404e-05,96516.0,96515.0,2.13115026]
[1739351106776,4.404e-05,96516.0,96515.0,2.15221952]
[1739351112757,4.404e-05,96516.0,96515.0,2.14221952]
[1739351112920,4.404e-05,96516.0,96515.0,2.15221952]
[1739351113615,4.404e-05,96516.0,96515.0,2.14221952]
[1739351113798,4.404e-05,96516.0,96515.0,2.1298468]
[1739351114411,0.00015054,96516.0,96515.0,2.1298468]
[1739351115060,0.00015054,96516.0,96515.0,1.99434315]
[1739351115264,0.00015054,96516.0,96515.0,2.00190315]
[1739351115683,0.00015054,96516.0,96515.0,1.99434315]
[1739351115875,0.00015054,96516.0,96515.0,2.00190315]
[1739351117042,0.00015054,96516.0,96515.0,0.75454926]
[1739351117241,0.00015054,96516.0,96515.0,0.65848]
[1739351117656,0.00015054,96516.0,96515.0,0.73908]
[1739351118062,0.00015054,96516.0,96515.0,0.71708]
[1739351118286,0.00015054,96516.0,96515.0,0.81185259]
[1739351118505,0.00015054,96516.0,96515.0,0.73134894]
[1739351118681,0.00015054,96516.0,96515.0,0.72434894]
[1739351118841,0.00015054,96516.0,96515.0,0.73134894]
[1739351119248,0.00015054,96516.0,96515.0,0.72434894]
[1739351119466,0.00015054,96516.0,96515.0,0.73134894]
[1739351119689,0.00015054,96516.0,96515.0,0.71634894]
[1739351119869,0.00015054,96516.0,96515.0,0.73134894]
[1739351120461,0.00015054,96516.0,96515.0,0.71634894]
[1739351120779,0.00015054,96516.0,96515.0,0.73134894]
[1739351123180,0.00015054,96516.0,96515.0,0.71634894]
[1739351123531,0.00015054,96516.0,96515.0,0.73134894]
[1739351124316,0.00015054,96516.0,96515.0,0.72434894]
[1739351124515,0.00015054,96516.0,96515.0,0.71634894]
[1739351124943,0.00015054,96516.0,96515.0,0.72434894]
[1739351125282,0.00015054,96516.0,96515.0,0.73134894]
[1739351125485,0.00015054,96516.0,96515.0,0.72434894]
[1739351125911,0.00015054,96516.0,96515.0,0.87976494]
[1739351126113,0.00015054,96516.0,96515.0,0.88676494]
[1739351126470,0.00015054,96516.0,96515.0,0.87176494]
[1739351126802,0.00015054,96516.0,96515.0,1.19626494]
[1739351127003,0.00015054,96516.0,96515.0,1.21126494]
[1739351127407,0.00015054,96516.0,96515.0,1.21898016]
[1739351128155,0.00015054,96516.0,96515.0,1.22598016]
[1739351128385,0.00015054,96516.0,96515.0,1.21198016]
[1739351128590,0.00015054,96516.0,96515.0,1.21898016]
[1739351129007,0.00015054,96516.0,96515.0,1.21198016]
[1739351129210,0.00015054,96516.0,96515.0,1.21898016]
[1739351129581,0.00015054,96516.0,96515.0,1.20398016]
[1739351129952,0.00015054,96516.0,96515.0,1.21898016]
[1739351130477,0.00015054,96516.0,96515.0,1.21198016]
[1739351130894,0.00015054,96516.0,96515.0,0.98296416]
[1739351131115,0.15556454,96516.0,96515.0,0.65146416]
[1739351131540,0.15556454,96516.0,96515.0,0.65846416]
[1739351131754,0.15556454,96516.0,96515.0,0.65146416]
[1739351132215,0.15556454,96516.0,96515.0,0.66250704]
[1739351132446,0.15556454,96516.0,96515.0,0.65550704]
[1739351132638,0.15556454,96516.0,96515.0,0.64050704]
[1739351133615,0.15556454,96516.0,96515.0,0.65550704]
[1739351133755,0.15556454,96516.0,96515.0,0.66050704]
[1739351133926,0.15556454,96516.0,96515.0,0.64050704]
[1739351134163,0.15556454,96516.0,96515.0,0.64379182]
[1739351134361,0.15556454,96516.0,96515.0,0.64879182]
[1739351134774,0.00015054,96516.0,96515.0,0.64879182]
[1739351135022,0.00015054,96516.0,96515.0,0.64379182]
[1739351135442,0.00015054,96516.0,96515.0,0.64879182]
[1739351135648,0.00015054,96516.0,96515.0,0.63779182]
[1739351135902,0.15556454,96516.0,96515.0,0.63779182]
[1739351136142,0.15556454,96516.0,96515.0,0.64879182]
[1739351138577,0.18596454,96516.0,96515.0,0.64879182]
[1739351139041,0.18596454,96516.0,96515.0,0.63779182]
[1739351139242,0.18596454,96516.0,96515.0,0.64879182]
[1739351139778,0.23566454,96516.0,96515.0,0.54628817]
[1739351140174,0.72641954,96516.0,96515.0,0.54628817]
[1739351140385,0.90256254,96516.0,96515.0,0.54128817]
[1739351140625,0.90256254,96516.0,96515.0,0.53028817]
[1739351140833,0.90180152,96516.0,96515.0,0.53528817]
[1739351141035,0.89774007,96516.0,96515.0,0.53528817]
[1739351141271,1.04774007,96516.0,96515.0,0.53528817]
[1739351141654,1.04774007,96516.0,96515.0,0.53028817]
[1739351141830,1.04774007,96516.0,96515.0,0.53628817]
[1739351142577,1.04774007,96516.0,96515.0,0.53028817]
[1739351142777,1.04874007,96516.0,96515.0,0.53028817]
[1739351143291,1.04774007,96516.0,96515.0,0.53028817]
[1739351143527,1.04974007,96516.0,96515.0,0.53028817]
[1739351143708,0.64180407,96516.0,96515.0,0.53028817]
[1739351143906,0.61340607,96516.0,96515.0,0.53028817]
[1739351144109,0.61440607,96516.0,96515.0,0.53028817]
[1739351144518,0.47124607,96516.0,96515.0,0.53028817]
[1739351144721,0.47224607,96516.0,96515.0,0.53028817]
[1739351145124,0.46924607,96516.0,96515.0,0.53028817]
[1739351145347,0.47124607,96516.0,96515.0,0.53028817]
[1739351145827,0.47024607,96516.0,96515.0,0.53028817]
[1739351146239,0.48748553,96516.0,96515.0,0.53028817]
[1739351146597,0.48648553,96516.0,96515.0,0.53028817]
[1739351147050,0.48748553,96516.0,96515.0,0.53028817]
[1739351147620,0.48848553,96516.0,96515.0,0.53028817]
[1739351147749,0.48648553,96516.0,96515.0,0.53028817]
[1739351147952,0.48748553,96516.0,96515.0,0.53028817]
[1739351148166,0.48648553,96516.0,96515.0,0.53028817]
[1739351148371,0.48548553,96516.0,96515.0,0.53028817]
[1739351148567,0.48648553,96516.0,96515.0,0.53028817]
[1739351148976,0.48548553,96516.0,96515.0,0.53028817]
[1739351149379,0.48648553,96516.0,96515.0,0.53028817]
[1739351149718,1.16837953,96516.0,96515.0,0.53028817]
[1739351149877,1.18677653,96516.0,96515.0,0.53028817]
[1739351150069,0.81324853,96516.0,96515.0,0.53028817]
[1739351150303,0.81424853,96516.0,96515.0,0.53028817]
[1739351150505,0.81324853,96516.0,96515.0,0.53028817]
[1739351151715,0.81424853,96516.0,96515.0,0.53028817]
[1739351152120,0.81324853,96516.0,96515.0,0.53028817]
[1739351152363,0.81324853,96516.0,96515.0,0.53051182]
[1739351152529,0.81435503,96516.0,96515.0,0.53051182]
[1739351152935,0.81235503,96516.0,96515.0,0.53051182]
[1739351153287,0.81335503,96516.0,96515.0,0.53051182]
[1739351153949,0.81435503,96516.0,96515.0,0.53051182]
[1739351154151,0.81335503,96516.0,96515.0,0.53051182]
[1739351154388,0.81235503,96516.0,96515.0,0.53051182]
[1739351154792,0.81335503,96516.0,96515.0,0.53051182]
[1739351155398,0.81235503,96516.0,96515.0,0.53051182]
[1739351155797,0.81335503,96516.0,96515.0,0.53051182]
[1739351156439,0.81435503,96516.0,96515.0,0.53051182]
[1739351156644,0.81335503,96516.0,96515.0,0.53051182]
[1739351156892,0.81435503,96516.0,96515.0,0.53051182]
[1739351157065,0.81335503,96516.0,96515.0,0.53051182]
[1739351157860,0.81235503,96516.0,96515.0,0.53051182]
[1739351158104,0.81335503,96516.0,96515.0,0.53051182]
[1739351158362,0.81435503,96516.0,96515.0,0.53051182]
[1739351158728,0.81335503,96516.0,96515.0,0.53051182]
[1739351158936,0.81435503,96516.0,96515.0,0.53051182]
[1739351159292,0.81235503,96516.0,96515.0,0.53051182]
[1739351159707,0.81335503,96516.0,96515.0,0.53051182]
[1739351160332,0.69665203,96516.0,96515.0,0.53051182]
[1739351160843,0.61294503,96516.0,96515.0,0.53051182]
[1739351161081,0.61194503,96516.0,96515.0,0.53051182]
[1739351161316,0.61094503,96516.0,96515.0,0.53051182]
[1739351161538,0.61194503,96516.0,96515.0,0.53051182]
[1739351161953,0.61094503,96516.0,96515.0,0.53051182]
[1739351162687,0.0001065,96516.0,96515.0,0.91353147]
[1739351162943,0.0011065,96516.0,96515.0,0.91353147]
[1739351163187,0.0011065,96516.0,96515.0,1.01217894]
[1739351163422,0.0021065,96516.0,96515.0,0.90967529]
[1739351163985,0.0001065,96516.0,96515.0,0.90967529]
[1739351164316,0.0001065,96516.0,96515.0,0.91067529]
[1739351164707,0.0001065,96516.0,96515.0,0.91767529]
[1739351164885,0.0001065,96516.0,96515.0,0.91667529]
[1739351165093,0.0001065,96516.0,96515.0,0.93167529]
[1739351165563,0.0001065,96516.0,96515.0,0.76125929]
[1739351165759,0.0001065,96516.0,96515.0,0.71135929]
[1739351165966,0.1555205,96516.0,96515.0,0.72635929]
[1739351166191,0.1555205,96516.0,96515.0,0.62385564]
[1739351166394,0.1555205,96516.0,96515.0,0.54865564]
[1739351166395,0.8883545,96516.0,96515.0,0.54865564]
[1739351166603,0.90098172,96516.0,96515.0,0.54165564]
[1739351166844,1.05098172,96516.0,96515.0,0.54865564]
[1739351167243,1.05098172,96516.0,96515.0,0.54165564]
[1739351167396,1.05098172,96516.0,96515.0,0.54365564]
[1739351167816,1.05098172,96516.0,96515.0,0.52665564]
[1739351167993,1.05098172,96516.0,96515.0,0.54165564]
[1739351168422,1.05098172,96516.0,96515.0,0.52865564]
[1739351168620,0.31814772,96516.0,96515.0,0.52865564]
[1739351169037,0.31814772,96516.0,96515.0,0.53165564]
[1739351169684,0.31814772,96516.0,96515.0,0.52865564]
[1739351170012,0.33438677,96516.0,96515.0,0.52865564]
[1739351170474,0.33438677,96516.0,96515.0,0.52665564]
[1739351170789,0.33438677,96516.0,96515.0,0.52865564]
[1739351170932,0.33438677,96516.0,96515.0,0.52665564]
[1739351171295,0.33438677,96516.0,96515.0,0.53265564]
[1739351171672,0.33438677,96516.0,96515.0,0.52865564]
[1739351172043,0.33438677,96516.0,96515.0,0.53265564]
[1739351172499,1.52648077,96516.0,96515.0,0.52865564]
[1739351172702,1.54948077,96516.0,96515.0,0.53165564]
[1739351173428,1.54948077,96516.0,96515.0,0.52965564]
[1739351173574,1.54948077,96516.0,96515.0,0.53165564]
[1739351174009,1.54948077,96516.0,96515.0,0.52965564]
[1739351174244,1.54948077,96516.0,96515.0,0.52665564]
[1739351174595,1.55148077,96516.0,96515.0,0.52665564]
[1739351175170,1.54948077,96516.0,96515.0,0.52665564]
[1739351175401,1.58354172,96516.0,96515.0,0.52665564]
[1739351175807,1.58154172,96516.0,96515.0,0.52665564]
[1739351176154,1.58354172,96516.0,96515.0,0.52665564]
[1739351176772,1.30065159,96516.0,96515.0,0.52665564]
[1739351177016,1.420808,96516.0,96515.0,0.52665564]
[1739351177434,1.43184671,96516.0,96515.0,0.52665564]
[1739351177639,1.43384671,96516.0,96515.0,0.52665564]
[1739351178310,1.450087,96516.0,96515.0,0.52665564]
[1739351179720,0.407993,96516.0,96515.0,0.52665564]
[1739351179924,1.600087,96516.0,96515.0,0.52665564]
[1739351182886,1.59805338,96516.0,96515.0,0.52665564]
[1739351183289,1.59805338,96516.0,96515.0,0.47892422]
[1739351183443,1.92645338,96516.0,96515.0,0.47085132]
[1739351183653,2.02271674,96516.0,96515.0,0.05673719]
[1739351183921,2.02271674,96516.0,96515.0,0.0483552]
[1739351184254,2.02271674,96516.0,96515.0,0.0276332]
[1739351184479,2.02071674,96516.0,96515.0,2e-07]
[1739351184683,0.83062274,96516.0,96515.0,2e-07]
[1739351185127,0.83062274,96516.0,96499.0,0.00022365]
[1739351185128,0.01,96513.0,96499.0,0.00022365]
[1739351185332,0.30544,96500.0,96499.0,0.00022365]
[1739351185541,1.497534,96500.0,96499.0,0.00022365]
[1739351185766,1.471096,96500.0,96499.0,0.00022365]
[1739351185974,1.367129,96500.0,96499.0,0.00022365]
[1739351186790,1.369129,96500.0,96499.0,0.00022365]
[1739351187006,1.38537229,96500.0,96499.0,0.00022365]
[1739351187411,1.38537229,96500.0,96499.0,0.00122365]
[1739351188341,1.38537229,96500.0,96499.0,0.00022365]
[1739351188987,1.39137229,96500.0,96499.0,0.00022365]
[1739351189987,1.40217176,96500.0,96499.0,0.00022365]
[1739351190433,1.40417176,96500.0,96499.0,0.00022365]
[1739351190602,1.39817176,96500.0,96499.0,0.00022365]
[1739351190747,1.40317176,96500.0,96499.0,0.00022365]
[1739351192043,1.39817176,96500.0,96499.0,0.00022365]
[1739351192202,1.40117176,96500.0,96499.0,0.00022365]
[1739351192624,1.40317176,96500.0,96499.0,0.00022365]
[1739351194691,1.39817176,96500.0,96499.0,0.00022365]
[1739351194826,1.40317176,96500.0,96499.0,0.00022365]
[1739351195244,1.40117176,96500.0,96499.0,0.00022365]
[1739351195612,1.40317176,96500.0,96499.0,0.00022365]
[1739351196577,1.39817176,96500.0,96499.0,0.00022365]
[1739351196788,1.39617176,96500.0,96499.0,0.00022365]
[1739351196991,1.40117176,96500.0,96499.0,0.00022365]
[1739351197207,1.40317176,96500.0,96499.0,0.00022365]
[1739351199833,1.39617176,96500.0,96499.0,0.00022365]
[1739351200264,1.40317176,96500.0,96499.0,0.00022365]
[1739351202023,1.40117176,96500.0,96499.0,0.00022365]
[1739351202259,1.40317176,96500.0,96499.0,0.00022365]
[1739351202859,1.39817176,96500.0,96499.0,0.00022365]
[1739351203028,1.40317176,96500.0,96499.0,0.00022365]
[1739351203228,1.44607262,96500.0,96499.0,0.00022365]
[1739351203429,1.40317176,96500.0,96499.0,0.00022365]
[1739351203847,1.39817176,96500.0,96499.0,0.00022365]
[1739351204249,1.73157176,96500.0,96499.0,0.00022365]
[1739351204651,1.72957176,96500.0,96499.0,0.00022365]
[1739351204844,0.305454,96491.0,96490.0,0.00022365]
[1739351205126,1.497548,96491.0,96490.0,0.00022365]
[1739351206194,1.498548,96491.0,96490.0,0.00022365]
[1739351206818,1.497548,96491.0,96490.0,0.00022365]
[1739351207182,1.502548,96491.0,96490.0,0.00022365]
[1739351207605,1.497548,96491.0,96490.0,0.00022365]
[1739351207804,1.502548,96491.0,96490.0,0.00022365]
[1739351208012,1.504548,96491.0,96490.0,0.00022365]
[1739351208354,1.502548,96491.0,96490.0,0.00022365]
[1739351208602,1.504548,96491.0,96490.0,0.00022365]
[1739351209321,1.499548,96491.0,96490.0,0.00022365]
[1739351209620,1.497548,96491.0,96490.0,0.00022365]
[1739351209828,1.504548,96491.0,96490.0,0.00022365]
[1739351210045,1.5207929,96491.0,96490.0,0.00022365]
[1739351210402,1.5437929,96491.0,96490.0,0.00022365]
[1739351210607,1.5387929,96491.0,96490.0,0.00022365]
[1739351210804,0.305462,96486.0,96482.0,0.00022365]
[1739351211046,1.497556,96486.0,96482.0,0.00022365]
[1739351212144,1.497556,96486.0,96485.0,0.00029198]
[1739351213383,1.499556,96486.0,96485.0,0.00029198]
[1739351214145,1.51236617,96486.0,96485.0,0.00029198]
[1739351218192,1.51222642,96486.0,96485.0,0.00029198]
[1739351224536,1.53522642,96486.0,96485.0,9.8e-07]
[1739351224785,0.34113242,96486.0,96485.0,9.8e-07]
[1739351225027,0.34313242,96486.0,96485.0,9.8e-07]
[1739351227388,0.34313242,96486.0,96472.0,0.0816]
[1739351227389,0.305483,96473.0,96472.0,0.0816]
[1739351227630,0.305483,96473.0,96472.0,0.08173232]
[1739351227865,0.305483,96473.0,96472.0,0.08999568]
[1739351228101,1.51382303,96473.0,96472.0,0.08999568]
[1739351228340,1.54261906,96473.0,96472.0,0.00839568]
[1739351228581,1.520577,96473.0,96472.0,0.00839568]
[1739351228824,1.520577,96473.0,96472.0,0.01639568]
[1739351229069,1.520577,96473.0,96472.0,0.02039568]
[1739351229311,1.520577,96473.0,96472.0,0.00839568]
[1739351229523,0.305501,96462.0,96455.0,0.0454]
[1739351229821,0.305501,96462.0,96461.0,0.0002679]
[1739351230128,1.497595,96462.0,96461.0,0.0002679]
[1739351231095,0.15,96461.0,96460.0,1e-08]
[1739351231339,0.15,96461.0,96460.0,4.406e-05]
[1739351231340,1.342094,96461.0,96460.0,4.406e-05]
[1739351232279,1.342094,96461.0,96460.0,0.00204406]
[1739351232716,1.342094,96461.0,96460.0,4.406e-05]
[1739351232944,1.345094,96461.0,96460.0,0.00104406]
[1739351233171,1.353094,96461.0,96460.0,0.00104406]
[1739351233658,0.305508,96458.0,96457.0,0.07990583]
[1739351233899,0.305508,96458.0,96446.0,0.0454]
[1739351233900,0.305517,96452.0,96446.0,0.0454]
[1739351234127,0.155529,96445.0,96444.0,0.00022386]
[1739351234322,1.456136,96445.0,96444.0,0.00035619]
[1739351235753,1.457136,96445.0,96444.0,0.00035619]
[1739351235997,1.47655674,96445.0,96444.0,0.00035619]
[1739351236227,1.47555674,96445.0,96444.0,0.00035619]
[1739351237162,1.49180798,96445.0,96444.0,0.00035619]
[1739351237683,1.49180798,96445.0,96444.0,0.00235619]
[1739351237786,1.49180798,96445.0,96444.0,0.00335619]
[1739351238017,0.34120098,96445.0,96444.0,0.00135619]
[1739351238243,0.34120098,96445.0,96444.0,0.00235619]
[1739351238486,1.53329498,96445.0,96444.0,0.00235619]
[1739351238711,1.54917199,96445.0,96444.0,0.00235619]
[1739351238949,1.57217199,96445.0,96444.0,0.00135619]
[1739351239178,1.57817199,96445.0,96444.0,0.00135619]
[1739351239400,0.305535,96441.0,96435.0,0.0822]
[1739351239620,0.328535,96441.0,96440.0,0.00027831]
[1739351239871,1.520629,96441.0,96440.0,0.00027831]
[1739351240125,1.54004974,96441.0,96440.0,0.00027831]
[1739351240559,1.23451474,96441.0,96440.0,0.00027831]
[1739351240786,1.39004974,96441.0,96440.0,0.00027831]
[1739351241568,1.39304974,96441.0,96440.0,0.00027831]
[1739351241817,1.39404974,96441.0,96440.0,0.00027831]
[1739351242804,1.54404974,96441.0,96440.0,0.00027831]
[1739351243663,1.54104974,96441.0,96440.0,0.00027831]
[1739351243871,1.54004974,96441.0,96440.0,0.00027831]
[1739351244144,1.54404974,96441.0,96440.0,0.00027831]
[1739351244577,1.54004974,96441.0,96440.0,0.00027831]
[1739351244798,1.54404974,96441.0,96440.0,0.00027831]
[1739351245450,1.54104974,96441.0,96440.0,0.00027831]
[1739351245655,1.54004974,96441.0,96440.0,0.00027831]
[1739351245951,1.54104974,96441.0,96440.0,0.00027831]
[1739351246748,1.54404974,96441.0,96440.0,0.00027831]
[1739351247244,1.54104974,96441.0,96440.0,0.00027831]
[1739351247650,1.54404974,96441.0,96440.0,0.00027831]
[1739351247842,1.54304974,96441.0,96440.0,0.00027831]
[1739351248251,1.54404974,96441.0,96440.0,0.00027831]
[1739351248554,0.35195574,96441.0,96440.0,0.00027831]
[1739351248712,1.54104974,96441.0,96440.0,0.00027831]
[1739351248932,1.54004974,96441.0,96440.0,0.00027831]
[1739351249186,1.54004974,96441.0,96435.0,0.0822]
[1739351249187,0.305543,96436.0,96435.0,0.07747831]
[1739351249759,1.497637,96436.0,96435.0,0.07747831]
[1739351249968,1.386628,96436.0,96435.0,0.07747831]
[1739351250281,1.40604874,96436.0,96435.0,0.07747831]
[1739351250808,1.30461674,96436.0,96435.0,0.07747831]
[1739351251387,1.30461674,96436.0,96435.0,0.07847831]
[1739351251611,1.285196,96436.0,96435.0,0.07847831]
[1739351251992,1.285196,96436.0,96435.0,0.07947831]
[1739351253147,1.285196,96436.0,96435.0,0.07847831]
[1739351253595,1.291196,96436.0,96435.0,0.07947831]
[1739351254123,1.285196,96436.0,96435.0,0.07747831]
[1739351254324,1.289196,96436.0,96435.0,0.07747831]
[1739351254479,1.291196,96436.0,96435.0,0.07747831]